bitfinex/quotes_ETHUSD_20250426
["timestamp","ask_amount","ask_price","bid_price","bid_amount"]
[1745698104385,17.55703696,1819.3,1819.2,0.39298674]
[1745698104626,18.73176856,1819.3,1819.2,0.39298674]
[1745698106124,21.73176856,1819.3,1819.2,0.39298674]
[1745698106326,5.49798988,1818.9,1818.5,0.8002]
[1745698106512,0.75259877,1818.8,1818.5,0.8002]
[1745698106867,0.75259877,1818.6,1818.2,2.1107222]
[1745698107028,0.75259877,1818.8,1818.2,2.1107222]
[1745698107194,6.25091087,1818.8,1818.2,6.95069433]
[1745698107827,6.25091087,1818.8,1818.2,1.45077042]
[1745698108229,6.25091087,1818.8,1818.3,0.22872655]
[1745698109220,6.25091087,1818.8,1818.3,0.28370879]
[1745698109614,0.75259877,1818.8,1818.3,0.28370879]
[1745698109821,0.75259877,1818.8,1818.3,1.00714994]
[1745698110024,0.75259877,1818.8,1818.4,3.0]
[1745698110225,0.75259877,1818.8,1818.5,0.85518224]
[1745698110423,0.75259877,1818.8,1818.5,1.08506786]
[1745698110634,6.25075748,1818.8,1818.5,1.03008562]
[1745698110840,6.25075748,1818.8,1818.5,1.43859241]
[1745698113218,6.11,1818.9,1818.5,1.43859241]
[1745698113516,5.49722991,1819.1,1818.7,0.8002]
[1745698113842,5.49722991,1819.1,1818.8,0.22987238]
[1745698114140,5.49722991,1819.1,1818.7,0.8002]
[1745698114521,5.49722991,1819.1,1818.8,0.22987238]
[1745698114923,5.49782835,1818.9,1818.8,0.22987238]
[1745698115126,5.49782835,1818.9,1818.5,1.18650679]
[1745698115342,0.75259877,1819.0,1818.6,1.01064079]
[1745698115528,6.26074269,1818.9,1818.6,1.01064079]
[1745698116418,6.26074269,1818.9,1818.6,0.23264079]
[1745698116624,5.49843294,1818.7,1818.6,0.23264079]
[1745698116865,6.25091497,1818.8,1818.6,0.23264079]
[1745698117418,5.49843294,1818.7,1818.6,0.23264079]
[1745698117854,0.7628,1818.6,1818.4,3.0]
[1745698118058,6.26183766,1818.5,1818.4,3.0]
[1745698118262,12.37183766,1818.5,1818.4,3.0]
[1745698121831,5.50000291,1818.2,1817.7,5.544]
[1745698122070,0.75259877,1818.1,1817.8,0.5544]
[1745698123482,6.11,1818.2,1817.9,3.0]
[1745698125607,6.11,1818.2,1818.0,0.21636089]
[1745698125812,11.60999842,1818.2,1818.0,0.21636089]
[1745698126378,6.11,1818.2,1818.0,0.21636089]
[1745698126812,6.11,1818.2,1818.0,1.30079698]
[1745698127915,5.50007428,1818.2,1818.0,0.53799698]
[1745698128208,5.50007428,1818.2,1818.0,0.21636089]
[1745698129080,12.36237547,1818.3,1818.0,0.21636089]
[1745698129282,5.49995392,1818.2,1818.0,0.21636089]
[1745698132013,13.1676853,1818.3,1818.0,0.21636089]
[1745698132230,6.2526595,1818.2,1818.0,0.21636089]
[1745698134620,0.75259877,1818.2,1818.0,0.21636089]
[1745698134984,6.25257766,1818.2,1818.0,0.21636089]
[1745698138198,5.50024751,1818.1,1818.0,0.21636089]
[1745698138517,6.25278717,1818.2,1818.0,0.21636089]
[1745698139222,6.25274929,1818.2,1818.0,0.21636089]
[1745698139625,11.75296072,1818.2,1818.0,0.21636089]
[1745698139801,5.50024751,1818.1,1818.0,0.21636089]
[1745698140509,11.61024751,1818.1,1818.0,0.21636089]
[1745698140739,11.61024751,1818.1,1817.9,3.0]
[1745698140740,5.50055005,1818.0,1817.9,3.0]
[1745698140944,6.25314882,1818.0,1817.9,3.20473263]
[1745698142752,6.11,1818.1,1817.9,3.20473263]
[1745698142911,6.11,1818.1,1817.9,3.95873263]
[1745698143639,11.61044873,1818.1,1817.9,3.20473263]
[1745698143945,6.11,1818.1,1818.0,0.20472821]
[1745698144109,11.61024751,1818.1,1818.0,0.20472821]
[1745698144312,6.11,1818.1,1818.0,0.20472821]
[1745698145460,11.61024751,1818.1,1818.0,0.20472821]
[1745698148919,14.22714681,1818.1,1818.0,0.20472821]
[1745698149231,5.50055005,1818.0,1817.9,3.0]
[1745698149443,6.25314882,1818.0,1817.9,3.0]
[1745698149621,5.50108186,1817.9,1817.4,5.6059]
[1745698150146,6.25334361,1818.0,1817.6,0.8259]
[1745698150351,6.25334361,1818.0,1817.7,0.20474146]
[1745698150551,6.25334361,1818.0,1817.6,0.8259]
[1745698150720,6.25334361,1818.0,1817.7,0.20606755]
[1745698150919,11.75414621,1818.0,1817.6,0.8259]
[1745698151131,11.75414716,1818.0,1817.7,0.20606755]
[1745698151333,11.75414716,1818.0,1817.7,3.0]
[1745698151535,11.75414716,1818.0,1817.8,0.20606313]
[1745698151913,5.50085263,1817.9,1817.8,0.20606313]
[1745698154356,6.25334361,1818.0,1817.8,0.20606313]
[1745698154558,6.11,1817.9,1817.8,0.20606313]
[1745698156358,11.61085263,1817.9,1817.8,0.20606313]
[1745698166381,14.93595337,1817.9,1817.8,0.20606313]
[1745698166569,14.1833546,1817.9,1817.8,0.20606313]
[1745698166738,5.50115524,1817.8,1817.7,3.0]
[1745698166938,12.36375401,1817.8,1817.7,3.19075534]
[1745698173256,16.11435401,1817.8,1817.7,3.19075534]
[1745698173584,17.36579055,1817.8,1817.7,3.0]
[1745698174467,5.50229165,1817.5,1817.2,0.7552]
[1745698174783,6.86259877,1817.4,1817.3,0.19183422]
[1745698174989,12.36496478,1817.4,1817.3,0.19183422]
[1745698175486,12.78398502,1817.4,1817.3,0.19183422]
[1745698176002,14.57038699,1817.4,1817.3,0.19183422]
[1745698176213,5.5029716,1817.2,1817.1,0.33170278]
[1745698176376,6.25557037,1817.2,1817.1,0.33170278]
[1745698176577,6.25557037,1817.2,1816.8,0.8206]
[1745698176578,5.50366353,1817.0,1816.8,0.8206]
[1745698176892,6.256479,1816.9,1816.6,0.8206]
[1745698177059,6.25708492,1816.7,1816.6,0.8206]
[1745698177261,0.75259877,1816.7,1816.4,0.8206]
[1745698177462,6.25725103,1816.7,1816.4,1.40386218]
[1745698177665,6.25725103,1816.7,1816.4,0.8206]
[1745698179587,0.75259877,1816.7,1816.4,0.8206]
[1745698179754,6.11,1816.8,1816.4,5.505267]
[1745698179956,6.11,1816.8,1816.5,0.84414208]
[1745698180852,6.11,1816.8,1816.6,0.7891]
[1745698181185,6.86259877,1817.1,1816.7,0.7891]
[1745698181350,6.86259877,1817.1,1816.7,1.41847882]
[1745698182478,12.36611825,1817.1,1816.7,0.7891]
[1745698182980,6.86259877,1817.1,1816.7,0.7891]
[1745698183178,6.86259877,1817.1,1816.8,0.16854735]
[1745698183487,12.36595093,1817.1,1816.8,0.16854735]
[1745698183705,13.15235093,1817.1,1816.8,0.16854735]
[1745698184228,0.75259877,1816.9,1816.8,0.16854735]
[1745698184719,6.25665397,1816.9,1816.7,0.7891]
[1745698185010,11.76081989,1816.9,1816.7,0.7891]
[1745698185217,5.50432201,1816.8,1816.5,0.7513]
[1745698185516,0.75259877,1816.7,1816.5,0.7513]
[1745698188013,6.25711516,1816.7,1816.3,5.4783]
[1745698188314,6.25709866,1816.7,1816.3,6.02613]
[1745698188514,0.75259877,1816.7,1816.3,5.4783]
[1745698188910,0.75259877,1816.7,1816.3,0.7513]
[1745698189122,6.25723238,1816.7,1816.3,0.7513]
[1745698189427,6.25725892,1816.7,1816.3,0.7513]
[1745698189945,6.11,1816.6,1816.3,0.7513]
[1745698192638,11.6147972,1816.6,1816.3,0.7513]
[1745698192949,6.11,1816.6,1816.3,0.7513]
[1745698193250,6.11,1816.6,1816.3,1.37700574]
[1745698193450,6.11,1816.6,1816.4,3.0]
[1745698195619,6.86259877,1816.7,1816.4,3.0]
[1745698198265,5.50478916,1816.6,1816.5,0.17152879]
[1745698198456,12.36738275,1816.7,1816.5,0.17152879]
[1745698198649,14.15378472,1816.7,1816.5,0.17152879]
[1745698198962,5.50478916,1816.6,1816.5,0.17152879]
[1745698200529,6.26088916,1816.6,1816.5,0.17152879]
[1745698200729,0.7561,1816.6,1816.5,0.17152879]
[1745698200945,0.7561,1816.6,1816.4,3.0]
[1745698201142,0.75259877,1816.5,1816.4,3.0]
[1745698201647,6.86259877,1816.5,1816.4,3.0]
[1745698202374,6.11,1816.5,1816.4,3.0]
[1745698202575,6.11,1816.5,1816.4,9.57329528]
[1745698202873,12.36632346,1817.0,1816.6,0.7679]
[1745698203776,0.75259877,1816.8,1816.6,0.7679]
[1745698204186,6.25687534,1816.8,1816.4,3.7591]
[1745698204349,0.75259877,1816.8,1816.4,3.7591]
[1745698204685,0.75259877,1816.8,1816.4,4.13501]
[1745698205548,0.75259877,1816.8,1816.4,4.19005877]
[1745698205755,1.16792287,1816.8,1816.4,4.19005877]
[1745698207275,1.16792287,1816.8,1816.4,4.13501]
[1745698207483,7.27792287,1816.8,1816.4,4.13501]
[1745698209385,12.7821702,1816.8,1816.4,4.13501]
[1745698209981,7.27792287,1816.8,1816.4,4.13501]
[1745698210543,12.78225898,1816.8,1816.4,4.13501]
[1745698211980,13.96860285,1817.2,1816.5,0.7591]
[1745698211981,0.75259877,1817.2,1816.5,0.7591]
[1745698212281,4.12696572,1818.4,1817.8,6.26017246]
[1745698212578,0.8064,1818.4,1818.0,5.50032236]
[1745698212782,1.55899877,1818.7,1818.1,5.55517108]
[1745698212961,1.55899877,1818.7,1818.2,5.4999328]
[1745698213287,5.49390392,1820.2,1818.6,5.49873529]
[1745698213288,0.8064,1819.4,1818.6,5.49873529]
[1745698213593,0.75259877,1819.3,1818.7,5.6049565]
[1745698213880,3.0,1819.3,1818.7,5.6049565]
[1745698214086,0.8064,1818.9,1818.7,0.10656018]
[1745698214269,9.20229411,1818.8,1818.1,0.7591]
[1745698214445,5.49843374,1818.7,1818.1,0.7591]
[1745698214650,13.91537936,1818.8,1818.1,6.25934687]
[1745698214886,5.49846793,1818.7,1818.1,0.7591]
[1745698215187,0.54984679,1818.6,1818.1,6.25913449]
[1745698215387,13.91531898,1818.8,1818.1,6.25913449]
[1745698216219,13.9152877,1818.8,1818.1,6.25925518]
[1745698216718,8.41709198,1818.8,1818.1,0.7591]
[1745698216905,13.91531795,1818.8,1818.1,6.25907247]
[1745698217617,13.91528478,1818.8,1818.1,0.7591]
[1745698217813,1.39152848,1818.7,1818.1,6.25906055]
[1745698218193,6.88999684,1818.7,1818.1,0.7591]
[1745698218512,6.89002514,1818.7,1818.1,0.7591]
[1745698218703,6.11,1818.6,1818.1,0.7591]
[1745698219419,6.11,1818.6,1818.2,3.0]
[1745698228638,6.11,1818.6,1817.6,0.8243]
[1745698228639,5.5003681,1818.1,1817.6,0.8243]
[1745698228802,6.11,1818.0,1817.6,0.8243]
[1745698229330,5.50097497,1817.9,1817.4,4.83]
[1745698229516,12.38362559,1818.0,1817.4,5.593]
[1745698229715,12.38362559,1818.0,1817.4,11.09529684]
[1745698229920,12.38362559,1818.0,1817.5,1.10952968]
[1745698230809,6.8829,1818.0,1817.5,1.10952968]
[1745698231135,12.38346854,1818.0,1817.5,1.10952968]
[1745698231428,12.38346854,1818.0,1817.6,0.23531504]
[1745698231636,6.8829,1818.0,1817.6,0.23531504]
[1745698231808,12.38346648,1818.0,1817.5,1.10952968]
[1745698232932,5.50097057,1817.9,1817.6,0.23962819]
[1745698233534,14.65485415,1818.0,1817.4,5.593]
[1745698233535,14.65510571,1818.0,1817.4,5.593]
[1745698233731,6.11,1817.9,1817.7,0.23951073]
[1745698234035,11.61086025,1817.9,1817.8,0.23949851]
[1745698234238,11.61086025,1817.9,1817.4,5.593]
[1745698234440,11.61086025,1817.9,1817.8,0.23955114]
[1745698234729,11.61086025,1817.9,1817.4,5.593]
[1745698234900,6.11,1817.9,1817.8,0.23955114]
[1745698235231,6.11,1817.9,1817.4,6.26533944]
[1745698235436,6.11,1817.9,1817.8,0.23955114]
[1745698235605,6.87645084,1817.9,1817.4,0.763]
[1745698235811,6.11,1817.9,1817.5,0.23958778]
[1745698236631,11.61085387,1817.9,1817.5,0.23958778]
[1745698236827,6.11,1817.9,1817.5,0.23958778]
[1745698239135,6.11,1817.9,1817.6,3.0]
[1745698239539,11.61089435,1817.9,1817.7,0.24298268]
[1745698239745,6.11,1817.9,1817.7,0.24298268]
[1745698239943,11.61096572,1817.9,1817.6,3.0]
[1745698240242,11.61096572,1817.9,1817.7,0.24298268]
[1745698240442,6.11,1817.9,1817.6,3.0]
[1745698240742,6.11,1817.9,1817.8,0.24297047]
[1745698240905,6.11,1817.9,1817.7,0.24298268]
[1745698241105,6.11,1817.9,1817.6,3.0]
[1745698241337,6.11,1817.9,1817.8,0.24297047]
[1745698241829,6.11,1817.9,1817.6,3.0]
[1745698242038,6.11,1817.9,1817.8,0.24297047]
[1745698242222,6.11,1817.9,1817.6,3.0]
[1745698242551,6.11,1817.9,1817.7,0.24298268]
[1745698242706,11.61087196,1817.9,1817.7,0.24298268]
[1745698242906,11.61087196,1817.9,1817.6,3.0]
[1745698243106,6.11,1817.9,1817.8,0.24297047]
[1745698243314,6.11,1817.9,1817.6,3.0]
[1745698243538,14.25503454,1817.9,1817.8,0.24297047]
[1745698243722,9.28175524,1817.8,1817.7,0.22313417]
[1745698243934,5.50195706,1817.6,1817.1,4.831]
[1745698244130,0.8038,1817.4,1817.0,1.11859589]
[1745698244441,0.8038,1817.4,1817.1,0.73322541]
[1745698245010,6.9138,1817.4,1817.1,0.73322541]
[1745698245341,5.50281473,1817.3,1817.1,0.22533177]
[1745698245729,5.50281473,1817.3,1816.8,0.8034]
[1745698245967,5.50281473,1817.3,1817.2,0.22637021]
[1745698246119,5.50281473,1817.3,1816.8,0.8034]
[1745698246320,5.50281473,1817.3,1817.2,0.22637021]
[1745698246652,13.85895022,1817.4,1817.2,0.22637021]
[1745698246849,13.85895022,1817.4,1816.9,0.50783262]
[1745698247070,13.16757022,1817.4,1816.9,0.50783262]
[1745698247222,5.50267902,1817.3,1817.0,0.22639465]
[1745698247520,5.50314801,1817.2,1817.0,0.73422727]
[1745698247717,11.61327444,1817.1,1817.0,0.73422727]
[1745698247921,12.41707444,1817.1,1817.0,0.73422727]
[1745698248166,18.03595802,1817.1,1817.0,0.50783262]
[1745698248537,6.3087507,1816.6,1816.2,0.8034]
[1745698248730,7.06000948,1816.6,1816.2,0.8034]
[1745698248948,7.06000948,1816.6,1816.3,0.22847713]
[1745698249455,0.75125878,1816.4,1816.3,0.22847713]
[1745698249684,0.75125878,1816.4,1816.0,0.7899]
[1745698249963,0.75125878,1816.4,1816.3,0.22847713]
[1745698250119,0.75125878,1816.4,1816.0,0.7899]
[1745698250322,0.75125878,1816.4,1816.3,0.22847713]
[1745698250522,0.75125878,1816.4,1816.0,0.7899]
[1745698250719,0.75125878,1816.4,1816.3,0.22847713]
[1745698250955,0.75125878,1816.4,1816.0,1.44829183]
[1745698251262,1.55505878,1816.6,1816.0,6.95467973]
[1745698251437,1.55505878,1816.6,1816.1,0.23218227]
[1745698251639,1.55505878,1816.6,1816.1,0.95086847]
[1745698252165,7.05989504,1816.6,1816.1,0.95086847]
[1745698253155,5.50514048,1816.5,1816.1,0.95086847]
[1745698253475,5.50514048,1816.5,1816.1,0.23218227]
[1745698253674,7.0600226,1816.6,1815.9,0.28711686]
[1745698253874,7.0600226,1816.6,1816.2,0.23217003]
[1745698254186,7.0600226,1816.6,1816.0,5.50647552]
[1745698254375,6.11,1816.5,1816.3,0.2321578]
[1745698254545,6.11,1816.5,1816.0,5.50647552]
[1745698254746,6.11,1816.5,1816.4,0.23214557]
[1745698254962,6.11,1816.5,1816.0,6.08583476]
[1745698255179,6.11,1816.5,1816.4,0.23214557]
[1745698255378,6.11,1816.5,1816.0,6.08583476]
[1745698255590,6.11,1816.5,1816.4,0.23214557]
[1745698255777,6.11,1816.5,1816.0,6.08583476]
[1745698255987,6.11,1816.5,1816.4,0.23214557]
[1745698256146,6.11,1816.5,1816.1,0.60858348]
[1745698256352,6.11,1816.5,1816.4,0.23214557]
[1745698256553,6.11,1816.5,1816.1,0.60858348]
[1745698256753,6.11,1816.5,1816.4,0.23981874]
[1745698256953,6.11,1816.5,1816.1,0.60858348]
[1745698257149,6.11,1816.5,1816.4,0.23981874]
[1745698257377,6.11,1816.5,1816.1,0.60858348]
[1745698257684,6.11,1816.5,1816.1,1.40698348]
[1745698257887,6.11,1816.5,1816.3,6.30386091]
[1745698258044,6.11,1816.5,1816.4,0.63038609]
[1745698258249,6.11,1816.5,1816.4,0.87020483]
[1745698259485,6.11,1816.5,1816.4,6.37560011]
[1745698260085,12.36555603,1816.8,1816.4,0.87020483]
[1745698260292,12.36555603,1816.8,1816.4,0.23981874]
[1745698260497,6.86125878,1816.8,1816.3,0.7984]
[1745698260791,6.86125878,1816.8,1816.5,0.23980651]
[1745698260962,6.86125878,1816.8,1816.4,0.23981874]
[1745698261164,6.86125878,1816.8,1816.6,0.21817842]
[1745698261369,6.86125878,1816.8,1816.5,0.21819065]
[1745698261570,6.86125878,1816.8,1816.7,0.21816619]
[1745698261769,6.86125878,1816.8,1816.6,0.21817842]
[1745698262093,6.86125878,1816.8,1816.7,0.21816619]
[1745698262294,6.11,1816.8,1816.5,5.50499569]
[1745698262488,6.11,1816.8,1816.7,0.21816619]
[1745698262691,6.11,1816.8,1816.6,1.03027842]
[1745698262882,6.11,1816.8,1816.7,0.21816619]
[1745698263079,6.11,1816.8,1816.6,0.8121]
[1745698263281,6.11,1816.8,1816.7,0.21816619]
[1745698263481,6.11,1816.8,1816.6,0.8121]
[1745698263792,6.11,1816.8,1816.7,0.21816619]
[1745698264183,6.11,1816.8,1816.6,0.8121]
[1745698264361,6.11,1816.8,1816.7,0.21816619]
[1745698264715,6.11,1816.8,1816.6,0.8121]
[1745698264898,6.11,1816.8,1816.7,0.21816619]
[1745698265098,6.11,1816.8,1816.6,0.8121]
[1745698265397,6.11,1816.8,1816.7,0.21816619]
[1745698265761,6.11,1816.8,1816.6,0.8121]
[1745698265962,13.18777785,1817.0,1816.6,0.8121]
[1745698266163,13.18777785,1817.0,1816.7,0.21816619]
[1745698266501,13.18777785,1817.0,1816.6,0.8121]
[1745698266714,13.18777785,1817.0,1816.8,0.21815397]
[1745698266880,13.18777785,1817.0,1816.6,0.8121]
[1745698267221,17.60559379,1817.0,1816.9,0.21814174]
[1745698267375,18.35685257,1817.0,1816.9,0.21814174]
[1745698267582,5.50432664,1816.8,1816.2,6.31809346]
[1745698267911,6.25576805,1816.7,1816.3,0.72545736]
[1745698268072,0.75125878,1816.7,1816.3,0.72545736]
[1745698268406,0.75125878,1816.7,1816.3,6.28616451]
[1745698268588,6.11,1816.8,1816.4,0.62861645]
[1745698268965,6.11,1816.8,1816.5,0.21819065]
[1745698269365,6.11,1816.8,1816.2,6.37297575]
[1745698269566,6.11,1816.8,1816.6,0.21817842]
[1745698269899,9.11,1816.8,1816.7,0.21816619]
[1745698270197,9.11,1816.8,1816.2,6.37292899]
[1745698270378,9.11,1816.8,1816.7,0.21816619]
[1745698270579,9.11,1816.8,1816.3,0.6372929]
[1745698270778,9.11,1816.8,1816.7,0.21816619]
[1745698270979,9.11,1816.8,1816.3,0.6372929]
[1745698271179,9.11,1816.8,1816.7,0.21816619]
[1745698271404,9.11,1816.8,1816.3,0.6372929]
[1745698271699,9.11,1816.8,1816.4,0.72663544]
[1745698272520,9.11,1816.8,1816.4,6.91877827]
[1745698272727,6.11,1816.8,1816.6,5.50473921]
[1745698273015,6.11,1817.0,1816.7,0.50843256]
[1745698273207,6.86125878,1817.1,1816.7,0.72754331]
[1745698274097,6.86125878,1817.1,1816.8,0.50843256]
[1745698274301,6.86125878,1817.1,1816.8,0.72753108]
[1745698274801,6.86125878,1817.1,1816.9,0.50843256]
[1745698275127,9.86125878,1817.1,1817.0,0.21907407]
[1745698276050,9.86125878,1817.1,1816.5,0.86714047]
[1745698276051,5.50371471,1817.0,1816.5,0.8121]
[1745698276342,5.50371471,1817.0,1816.4,0.68695987]
[1745698276343,0.75125878,1816.8,1816.4,0.68695987]
[1745698276645,0.75125878,1816.8,1816.4,6.19218943]
[1745698276821,0.75125878,1816.8,1816.5,0.7746]
[1745698277014,4.52015878,1817.0,1816.6,0.50991255]
[1745698277710,6.11,1816.9,1816.7,0.50991255]
[1745698278646,6.11,1816.9,1816.8,0.50991255]
[1745698279823,6.11,1816.9,1816.6,0.50991255]
[1745698280745,6.11,1816.9,1816.7,0.50991255]
[1745698281651,6.11,1816.9,1816.8,0.50991255]
[1745698282719,6.11,1816.9,1816.6,0.50991255]
[1745698282917,6.11,1816.9,1816.7,0.21911075]
[1745698283118,6.11,1816.9,1816.6,0.50991255]
[1745698283318,6.11,1816.9,1816.8,0.21909852]
[1745698283521,6.11,1816.9,1816.5,0.7746]
[1745698283719,6.11,1816.9,1816.8,0.21909852]
[1745698283954,6.11,1816.9,1816.5,0.7746]
[1745698284154,6.11,1816.9,1816.8,0.21909852]
[1745698284329,6.11,1816.9,1816.5,0.7746]
[1745698284652,6.11,1816.9,1816.6,0.21912297]
[1745698287285,6.11,1816.9,1816.6,6.37912337]
[1745698288556,6.11,1816.9,1816.6,0.87449362]
[1745698289654,12.42490185,1817.1,1816.6,0.21912297]
[1745698289841,0.75125878,1817.0,1816.6,0.21912297]
[1745698293935,0.75125878,1817.0,1816.7,0.7866]
[1745698294275,0.75125878,1817.0,1816.7,1.00502858]
[1745698301352,1.53975878,1817.0,1816.7,0.21842858]
[1745698301673,1.53975878,1817.0,1816.5,6.29152518]
[1745698301873,1.53975878,1817.0,1816.8,0.21841635]
[1745698302180,1.53975878,1817.0,1816.6,0.62915252]
[1745698302375,1.53975878,1817.0,1816.9,0.21840413]
[1745698302554,1.53975878,1817.0,1816.6,0.62915252]
[1745698302750,7.0434277,1817.0,1816.9,0.21840413]
[1745698303046,8.90910042,1817.0,1816.5,0.7866]
[1745698303250,8.90910042,1817.0,1816.9,0.21824671]
[1745698303577,8.90910042,1817.0,1816.5,0.7866]
[1745698303755,8.90910042,1817.0,1816.6,0.21828339]
[1745698307088,6.11,1816.9,1816.6,0.21828339]
[1745698311352,7.42533547,1816.9,1816.6,0.21828339]
[1745698313683,6.11,1816.9,1816.6,0.21828339]
[1745698316913,1.55235878,1816.8,1816.6,0.21828339]
[1745698317056,6.30558615,1816.7,1816.6,0.21828339]
[1745698317255,6.30558615,1816.7,1815.9,6.28730606]
[1745698317256,0.8011,1816.3,1815.9,6.28730606]
[1745698317797,0.8011,1816.3,1816.0,0.18299117]
[1745698317971,0.8011,1816.3,1816.0,0.83002089]
[1745698319493,6.11,1816.4,1816.0,6.39149987]
[1745698319662,6.11,1816.4,1816.1,6.25857664]
[1745698319858,6.11,1816.4,1816.1,0.7523]
[1745698320063,6.11,1816.4,1816.2,0.1829667]
[1745698320464,6.11,1816.4,1816.1,0.7523]
[1745698320661,6.11,1816.9,1816.3,0.93525447]
[1745698320902,6.8982,1817.0,1816.4,5.50518935]
[1745698321194,6.8982,1817.0,1816.4,5.68833126]
[1745698321395,12.40197445,1817.0,1816.4,5.68833126]
[1745698321698,6.8982,1817.0,1816.4,12.30904381]
[1745698322499,6.8982,1817.0,1816.5,6.25735044]
[1745698322701,6.8982,1817.0,1816.5,0.7523]
[1745698322874,6.8982,1817.0,1816.6,0.18291778]
[1745698324396,12.40199536,1817.0,1816.6,0.18291778]
[1745698324563,7.49542508,1816.9,1816.6,0.18291778]
[1745698324768,7.49542508,1816.9,1816.3,5.5318]
[1745698324769,5.50423415,1816.8,1816.3,5.5318]
[1745698324994,13.6053939,1816.9,1816.4,0.18294224]
[1745698325170,13.6053939,1816.9,1816.3,11.03741983]
[1745698325371,13.6053939,1816.9,1816.4,0.18294224]
[1745698325562,13.6053939,1816.9,1816.3,11.03741983]
[1745698325768,0.75125878,1816.7,1816.4,0.18294224]
[1745698325968,0.75125878,1816.7,1816.2,3.0]
[1745698326167,5.50498228,1816.6,1816.2,3.0]
[1745698326669,7.06509895,1816.5,1816.2,3.0]
[1745698327024,0.75125878,1816.3,1815.9,5.5318]
[1745698327167,6.25710548,1816.3,1815.9,5.5318]
[1745698327368,5.50606154,1816.2,1815.9,5.5318]
[1745698327607,5.50606154,1816.2,1815.8,0.30413399]
[1745698327608,6.25759835,1816.1,1815.8,0.30413399]
[1745698327907,12.36759835,1816.1,1815.7,0.8168]
[1745698328411,6.86125878,1816.1,1815.7,1.36998]
[1745698329009,6.86125878,1816.1,1815.7,0.8168]
[1745698329230,12.36759136,1816.1,1815.7,0.8168]
[1745698330002,6.86125878,1816.1,1815.7,0.8168]
[1745698330208,6.2583059,1815.9,1815.5,0.28719475]
[1745698330413,5.50725958,1815.8,1815.4,0.8252]
[1745698330637,11.61725958,1815.8,1815.4,1.37922]
[1745698331098,6.11,1815.8,1815.4,0.8252]
[1745698331930,6.11,1815.8,1815.4,6.33362567]
[1745698332106,6.11,1815.8,1815.4,0.8252]
[1745698333299,6.11,1815.8,1815.5,0.17672067]
[1745698333934,5.50733569,1815.8,1815.5,0.17672067]
[1745698334234,0.825,1815.7,1815.3,0.28723859]
[1745698334395,7.08378598,1815.7,1815.4,0.17688994]
[1745698334597,1.57625878,1815.7,1815.4,0.17688994]
[1745698336096,1.57625878,1815.7,1815.5,2.2]
[1745698336533,6.935,1815.9,1815.6,0.17686545]
[1745698337233,6.11,1815.9,1815.6,6.05829916]
[1745698337611,6.11,1815.9,1815.6,6.003221]
[1745698338211,6.11,1815.9,1815.6,0.495412]
[1745698339436,6.11,1816.0,1815.6,0.495412]
[1745698341400,11.61667533,1816.0,1815.6,0.17686545]
[1745698341600,0.75125878,1815.9,1815.6,0.17686545]
[1745698343040,6.11,1816.0,1815.6,0.17686545]
[1745698345305,11.61677253,1816.0,1815.6,0.17686545]
[1745698345508,11.61677253,1816.0,1815.6,0.12686545]
[1745698345713,11.61677253,1816.0,1815.6,0.17195379]
[1745698346243,13.78670841,1816.0,1815.6,0.17195379]
[1745698350241,6.25835246,1815.9,1815.6,0.17195379]
[1745698350421,6.26966019,1815.8,1815.6,0.17195379]
[1745698350622,6.25877654,1815.7,1815.6,0.17195379]
[1745698351107,12.36877654,1815.7,1815.6,0.17195379]
[1745698351744,6.11,1815.7,1815.6,0.17195379]
[1745698352419,6.11,1815.7,1815.6,0.92845379]
[1745698352754,6.11,1815.7,1815.6,1.79211056]
[1745698355711,6.11,1816.1,1815.8,5.5070753]
[1745698355911,6.8846,1816.3,1815.9,0.8312]
[1745698356145,6.8846,1816.3,1815.9,1.00297231]
[1745698356957,6.11,1816.3,1815.9,6.50971392]
[1745698357246,6.11,1816.3,1816.0,0.65097139]
[1745698357541,6.11,1816.3,1816.1,0.17138159]
[1745698358252,6.11,1816.4,1816.1,0.17138159]
[1745698359650,6.66549493,1816.6,1816.1,0.17138159]
[1745698359651,6.11,1816.6,1816.2,0.8049]
[1745698359818,6.11,1816.6,1816.3,0.17135712]
[1745698360014,6.11,1816.6,1816.3,0.81956544]
[1745698362858,6.11,1816.7,1816.3,6.32519709]
[1745698363057,6.11,1816.7,1816.3,0.81956544]
[1745698364356,0.7606,1816.6,1816.3,0.81956544]
[1745698364558,0.75125878,1816.4,1816.3,0.17135712]
[1745698364962,6.25679484,1816.4,1816.0,0.7769]
[1745698365127,9.25679484,1816.4,1816.3,0.17135712]
[1745698365317,5.50610761,1816.2,1815.7,0.7769]
[1745698365516,5.50663513,1816.0,1815.7,0.7769]
[1745698366160,5.50663513,1816.0,1815.6,0.7769]
[1745698366841,13.12840545,1816.1,1815.6,0.7769]
[1745698367043,5.50662409,1816.0,1815.6,0.7769]
[1745698367357,5.50662409,1816.0,1815.6,1.07459]
[1745698367556,13.12833938,1816.1,1815.6,1.07459]
[1745698368223,13.12833938,1816.1,1815.6,0.97459]
[1745698370865,5.50666669,1816.0,1815.6,0.97459]
[1745698371067,13.12838984,1816.1,1815.6,0.6769]
[1745698371276,6.25840404,1815.9,1815.4,0.2872111]
[1745698371576,6.25835504,1815.9,1815.4,1.0674111]
[1745698372046,5.50727644,1815.8,1815.4,1.0674111]
[1745698372247,11.61727644,1815.8,1815.4,1.0674111]
[1745698372664,11.61727644,1815.8,1815.5,2.1]
[1745698372960,12.43847644,1815.8,1815.5,2.1]
[1745698373157,13.75744996,1815.8,1815.5,2.1]
[1745698373338,13.75752295,1815.8,1815.5,2.1]
[1745698373672,8.25017352,1815.8,1815.5,2.1]
[1745698375373,12.93636418,1815.8,1815.6,0.7802]
[1745698375976,12.93636418,1815.8,1815.5,2.8802]
[1745698378269,12.93636418,1815.8,1815.6,0.17149529]
[1745698378779,5.50751776,1815.7,1815.6,0.17149529]
[1745698379078,6.80115418,1815.7,1815.6,0.17149529]
[1745698379670,17.48101296,1815.7,1815.6,0.17149529]
[1745698379870,5.50878523,1815.3,1815.0,0.7694]
[1745698380070,6.26043724,1815.2,1814.9,0.28727413]
[1745698380384,5.50934246,1815.1,1814.9,0.28727413]
[1745698380561,11.61934246,1815.1,1814.8,0.7694]